[Event "January 9 Early 2024"]
[Site "https://www.chess.com"]
[Date "2024.01.11"]
[Round "11"]
[White "Bluebaum, Matthias"]
[Black "Bacrot, Etienne"]
[Result "1-0"]
[Board "24"]
[TimeControl "180+1"]
[WhiteFideId "24651516"]
[BlackFideId "605506"]
[WhiteElo "3076"]
[BlackElo "2854"]
[WhiteTeam "GER"]
[BlackTeam "FRA"]
[WhiteClock "0:01:35"]
[BlackClock "0:00:05"]

1. d4 {[%clk 0:03:00]}  d5 {[%clk 0:03:00]} 2. c4 {[%clk 0:03:01]}  c6 {[%clk 0:03:00]} 3. Nf3 {[%clk 0:03:02]}  Nf6 {[%clk 0:03:00]} 4. Nc3 {[%clk 0:03:02]}  dxc4 {[%clk 0:03:01]} 5. e4 {[%clk 0:03:03]}  b5 {[%clk 0:03:00]} 6. Qc2 {[%clk 0:03:03]}  e6 {[%clk 0:02:59]} 7. Be2 {[%clk 0:03:03]}  Be7 {[%clk 0:02:58]} 8. O-O {[%clk 0:03:03]}  Bb7 {[%clk 0:02:58]} 9. Rb1 {[%clk 0:03:04]}  Qc7 {[%clk 0:02:55]} 10. e5 {[%clk 0:03:04]}  Nd5 {[%clk 0:02:55]} 11. Bg5 {[%clk 0:03:05]}  Nxc3 {[%clk 0:02:44]} 12. bxc3 {[%clk 0:02:56]}  a6 {[%clk 0:02:44]} 13. a4 {[%clk 0:02:48]}  h6 {[%clk 0:02:41]} 14. Bxe7 {[%clk 0:02:47]}  Qxe7 {[%clk 0:02:42]} 15. Nd2 {[%clk 0:02:48]}  O-O {[%clk 0:02:22]} 16. Ne4 {[%clk 0:02:48]}  Nd7 {[%clk 0:02:20]} 17. Bxc4 {[%clk 0:02:38]}  c5 {[%clk 0:01:58]} 18. axb5 {[%clk 0:02:31]}  cxd4 {[%clk 0:01:52]} 19. cxd4 {[%clk 0:02:32]}  Rfc8 {[%clk 0:01:32]} 20. Nd6 {[%clk 0:02:26]}  axb5 {[%clk 0:00:48]} 21. Rxb5 {[%clk 0:02:08]}  Bd5 {[%clk 0:00:29]} 22. Qe2 {[%clk 0:01:47]}  Qxd6 {[%clk 0:00:05]} 23. Bxd5 {[%clk 0:01:35]} 1-0

[Event "January 9 Early 2024"]
[Site "https://www.chess.com"]
[Date "2024.01.11"]
[Round "11"]
[White "Rose, Felix"]
[Black "Filipovic, Slobodan J"]
[Result "1-0"]
[Board "26"]
[TimeControl "180+1"]
[WhiteFideId "5105722"]
[BlackFideId "939633"]
[WhiteElo "2249"]
[BlackElo "2353"]
[WhiteTeam "MEX"]
[BlackTeam "SRB"]
[WhiteClock "0:00:45"]
[BlackClock "0:01:11"]

1. e4 {[%clk 0:03:00]}  c5 {[%clk 0:02:56]} 2. Nf3 {[%clk 0:03:00]}  Nc6 {[%clk 0:02:48]} 3. d4 {[%clk 0:03:00]}  cxd4 {[%clk 0:02:48]} 4. Nxd4 {[%clk 0:03:01]}  e5 {[%clk 0:02:49]} 5. Nb5 {[%clk 0:03:01]}  d6 {[%clk 0:02:49]} 6. N1c3 {[%clk 0:03:01]}  a6 {[%clk 0:02:50]} 7. Na3 {[%clk 0:03:02]}  b5 {[%clk 0:02:50]} 8. Nab1 {[%clk 0:03:02]}  Nge7 {[%clk 0:02:51]} 9. Bg5 {[%clk 0:03:02]}  h6 {[%clk 0:02:51]} 10. Bxe7 {[%clk 0:03:02]}  Bxe7 {[%clk 0:02:50]} 11. a4 {[%clk 0:03:01]}  b4 {[%clk 0:02:50]} 12. Nd5 {[%clk 0:03:02]}  Bg5 {[%clk 0:02:49]} 13. c3 {[%clk 0:02:57]}  a5 {[%clk 0:02:45]} 14. Bb5 {[%clk 0:02:57]}  Bd7 {[%clk 0:02:45]} 15. cxb4 {[%clk 0:02:56]}  axb4 {[%clk 0:02:43]} 16. O-O {[%clk 0:02:46]}  O-O {[%clk 0:02:07]} 17. Nd2 {[%clk 0:02:45]}  Nd4 {[%clk 0:02:06]} 18. Bxd7 {[%clk 0:02:40]}  Bxd2 {[%clk 0:02:00]} 19. Qxd2 {[%clk 0:02:31]}  Nb3 {[%clk 0:01:56]} 20. Qd1 {[%clk 0:02:23]}  Nxa1 {[%clk 0:01:56]} 21. Bb5 {[%clk 0:02:15]}  f5 {[%clk 0:01:35]} 22. exf5 {[%clk 0:02:07]}  Rxf5 {[%clk 0:01:31]} 23. Qg4 {[%clk 0:01:46]}  Rg5 {[%clk 0:01:24]} 24. Qe6+ {[%clk 0:01:44]}  Kh8 {[%clk 0:01:24]} 25. Rxa1 {[%clk 0:01:41]}  e4 {[%clk 0:01:23]} 26. Qxe4 {[%clk 0:01:12]}  Re5 {[%clk 0:01:19]} 27. Qf3 {[%clk 0:00:53]}  Qg5 {[%clk 0:01:16]} 28. Ne3 {[%clk 0:00:46]}  Rxb5 {[%clk 0:01:13]} 29. Qxa8+ {[%clk 0:00:46]}  Kh7 {[%clk 0:01:11]} 30. axb5 {[%clk 0:00:45]}  Qxg2+ {[%clk 0:01:11]} 31. Qxg2 {[%clk 0:00:45]} 1-0

[Event "January 9 Early 2024"]
[Site "https://www.chess.com"]
[Date "2024.01.11"]
[Round "11"]
[White "Dinu, Dumitru-Daniel"]
[Black "Arslanov, Shamil"]
[Result "1-0"]
[Board "27"]
[TimeControl "180+1"]
[WhiteFideId "1208403"]
[BlackFideId "4192826"]
[WhiteElo "2508"]
[BlackElo "2608"]
[WhiteTeam "ROU"]
[BlackTeam "RUS"]
[WhiteClock "0:00:30"]
[BlackClock "0:01:01"]

1. e4 {[%clk 0:03:00]}  d6 {[%clk 0:02:59]} 2. d4 {[%clk 0:03:00]}  e5 {[%clk 0:03:00]} 3. Nf3 {[%clk 0:02:59]}  Bg4 {[%clk 0:03:00]} 4. dxe5 {[%clk 0:02:54]}  Nc6 {[%clk 0:03:00]} 5. Bb5 {[%clk 0:02:37]}  Qd7 {[%clk 0:02:54]} 6. h3 {[%clk 0:02:25]}  Bh5 {[%clk 0:02:54]} 7. Bf4 {[%clk 0:02:14]}  O-O-O {[%clk 0:02:54]} 8. exd6 {[%clk 0:02:09]}  Qe8 {[%clk 0:02:53]} 9. Qe2 {[%clk 0:01:56]}  Bxd6 {[%clk 0:02:51]} 10. Bxd6 {[%clk 0:01:54]}  Rxd6 {[%clk 0:02:51]} 11. O-O {[%clk 0:01:53]}  a6 {[%clk 0:02:42]} 12. Bxc6 {[%clk 0:01:46]}  Rxc6 {[%clk 0:02:33]} 13. Nc3 {[%clk 0:01:41]}  Nf6 {[%clk 0:02:31]} 14. Qe3 {[%clk 0:01:38]}  Kb8 {[%clk 0:02:23]} 15. Nd4 {[%clk 0:01:33]}  Rb6 {[%clk 0:02:12]} 16. e5 {[%clk 0:01:29]}  Nd7 {[%clk 0:02:12]} 17. Nd5 {[%clk 0:01:21]}  Rh6 {[%clk 0:01:51]} 18. Rfe1 {[%clk 0:01:13]}  Bg6 {[%clk 0:01:45]} 19. e6 {[%clk 0:01:02]}  fxe6 {[%clk 0:01:44]} 20. Nxe6 {[%clk 0:01:02]}  Bxc2 {[%clk 0:01:37]} 21. Ndxc7 {[%clk 0:00:52]}  Qe7 {[%clk 0:01:32]} 22. Rac1 {[%clk 0:00:36]}  Bf5 {[%clk 0:01:21]} 23. Qf4 {[%clk 0:00:35]}  Bxe6 {[%clk 0:01:11]} 24. Nd5+ {[%clk 0:00:34]}  Ka7 {[%clk 0:01:03]} 25. Nxe7 {[%clk 0:00:33]}  Rf6 {[%clk 0:01:01]} 26. Qd4+ {[%clk 0:00:31]}  Ka8 {[%clk 0:01:02]} 27. Rxe6 {[%clk 0:00:30]}  Rxe6 {[%clk 0:01:01]} 28. Qxd7 {[%clk 0:00:30]} 1-0

[Event "January 9 Early 2024"]
[Site "https://www.chess.com"]
[Date "2024.01.11"]
[Round "11"]
[White "Sychev, Klementy"]
[Black "Yurovskykh, Oleksandr"]
[Result "0-1"]
[Board "28"]
[TimeControl "180+1"]
[WhiteFideId "4114060"]
[BlackFideId "14134020"]
[WhiteElo "2783"]
[BlackElo "2659"]
[WhiteTeam "FID"]
[BlackTeam "UKR"]
[WhiteClock "0:00:03"]
[BlackClock "0:01:43"]

1. e4 {[%clk 0:03:00]}  e6 {[%clk 0:02:59]} 2. Qe2 {[%clk 0:03:00]}  c5 {[%clk 0:02:59]} 3. b3 {[%clk 0:03:00]}  Nc6 {[%clk 0:02:59]} 4. Bb2 {[%clk 0:03:01]}  d6 {[%clk 0:02:58]} 5. f4 {[%clk 0:03:01]}  Nf6 {[%clk 0:02:57]} 6. Nf3 {[%clk 0:03:01]}  Be7 {[%clk 0:02:57]} 7. Nc3 {[%clk 0:02:55]}  O-O {[%clk 0:02:57]} 8. O-O-O {[%clk 0:02:54]}  a6 {[%clk 0:02:54]} 9. g4 {[%clk 0:02:54]}  b5 {[%clk 0:02:54]} 10. g5 {[%clk 0:02:55]}  Nd7 {[%clk 0:02:53]} 11. h4 {[%clk 0:02:48]}  Nb6 {[%clk 0:02:49]} 12. h5 {[%clk 0:02:47]}  b4 {[%clk 0:02:49]} 13. Nb1 {[%clk 0:02:48]}  a5 {[%clk 0:02:48]} 14. g6 {[%clk 0:02:47]}  fxg6 {[%clk 0:02:46]} 15. hxg6 {[%clk 0:02:47]}  h6 {[%clk 0:02:47]} 16. Qh2 {[%clk 0:02:46]}  Bf6 {[%clk 0:02:42]} 17. e5 {[%clk 0:02:43]}  dxe5 {[%clk 0:02:39]} 18. Nxe5 {[%clk 0:02:08]}  Nxe5 {[%clk 0:02:36]} 19. fxe5 {[%clk 0:01:40]}  Bg5 {[%clk 0:02:35]} 20. a4 {[%clk 0:01:14]}  bxa3 {[%clk 0:02:34]} 21. Nxa3 {[%clk 0:01:10]}  a4 {[%clk 0:02:35]} 22. Kb1 {[%clk 0:01:06]}  axb3 {[%clk 0:02:31]} 23. cxb3 {[%clk 0:01:06]}  Bb7 {[%clk 0:02:32]} 24. Rg1 {[%clk 0:00:57]}  Be4+ {[%clk 0:02:25]} 25. d3 {[%clk 0:00:55]}  Bd5 {[%clk 0:02:26]} 26. Qc2 {[%clk 0:00:49]}  Be3 {[%clk 0:02:18]} 27. Rg3 {[%clk 0:00:37]}  Bd4 {[%clk 0:02:18]} 28. Nc4 {[%clk 0:00:16]}  Nd7 {[%clk 0:02:12]} 29. Bg2 {[%clk 0:00:14]}  Qb8 {[%clk 0:02:05]} 30. Be4 {[%clk 0:00:10]}  Bxe4 {[%clk 0:02:02]} 31. dxe4 {[%clk 0:00:10]}  Nxe5 {[%clk 0:02:03]} 32. Nxe5 {[%clk 0:00:07]}  Qxe5 {[%clk 0:02:04]} 33. Rg2 {[%clk 0:00:03]}  Rfb8 {[%clk 0:01:56]} 34. Rd3 {[%clk 0:00:02]}  Bxb2 {[%clk 0:01:49]} 35. Qxb2 {[%clk 0:00:03]}  Qxe4 {[%clk 0:01:49]} 36. Qc3 {[%clk 0:00:03]}  Qxg2 {[%clk 0:01:43]} 0-1

[Event "January 9 Early 2024"]
[Site "https://www.chess.com"]
[Date "2024.01.11"]
[Round "11"]
[White "Franchini, Gabriele"]
[Black "Osinovsky, Stepan"]
[Result "1-0"]
[Board "29"]
[TimeControl "180+1"]
[WhiteFideId "806790"]
[BlackFideId "4157354"]
[WhiteElo "2261"]
[BlackElo "2401"]
[WhiteTeam "ITA"]
[BlackTeam "RUS"]
[WhiteClock "0:01:34"]
[BlackClock "0:00:10"]

1. e4 {[%clk 0:03:00]}  e5 {[%clk 0:03:00]} 2. Nf3 {[%clk 0:03:00]}  Nc6 {[%clk 0:03:00]} 3. d4 {[%clk 0:03:01]}  exd4 {[%clk 0:02:59]} 4. Nxd4 {[%clk 0:03:02]}  Bc5 {[%clk 0:02:59]} 5. Nb3 {[%clk 0:03:02]}  Bb6 {[%clk 0:03:00]} 6. Nc3 {[%clk 0:03:02]}  Nf6 {[%clk 0:02:58]} 7. Qe2 {[%clk 0:03:02]}  O-O {[%clk 0:02:57]} 8. Bg5 {[%clk 0:03:02]}  h6 {[%clk 0:02:55]} 9. Bh4 {[%clk 0:03:02]}  a5 {[%clk 0:02:36]} 10. a4 {[%clk 0:03:02]}  Nd4 {[%clk 0:02:22]} 11. Qd3 {[%clk 0:02:57]}  Nxb3 {[%clk 0:01:45]} 12. cxb3 {[%clk 0:02:57]}  Re8 {[%clk 0:01:35]} 13. O-O-O {[%clk 0:02:57]}  c6 {[%clk 0:01:29]} 14. Qc2 {[%clk 0:02:52]}  Qe7 {[%clk 0:01:15]} 15. Bc4 {[%clk 0:02:46]}  Qe5 {[%clk 0:01:12]} 16. Bg3 {[%clk 0:02:39]}  Qg5+ {[%clk 0:01:08]} 17. Kb1 {[%clk 0:02:26]}  d5 {[%clk 0:01:01]} 18. f4 {[%clk 0:02:02]}  Qg6 {[%clk 0:00:29]} 19. exd5 {[%clk 0:02:01]}  Bf5 {[%clk 0:00:25]} 20. Bd3 {[%clk 0:02:02]}  Bxd3 {[%clk 0:00:23]} 21. Qxd3 {[%clk 0:02:02]}  Qxd3+ {[%clk 0:00:19]} 22. Rxd3 {[%clk 0:02:03]}  Nxd5 {[%clk 0:00:15]} 23. Nxd5 {[%clk 0:02:04]}  cxd5 {[%clk 0:00:15]} 24. Rxd5 {[%clk 0:02:05]}  Re2 {[%clk 0:00:15]} 25. Re1 {[%clk 0:01:51]}  Rae8 {[%clk 0:00:13]} 26. Rxe2 {[%clk 0:01:50]}  Rxe2 {[%clk 0:00:14]} 27. Rb5 {[%clk 0:01:39]}  Bd4 {[%clk 0:00:14]} 28. Rxb7 {[%clk 0:01:39]}  Rxb2+ {[%clk 0:00:10]} 29. Kc1 {[%clk 0:01:40]}  Rxg2 {[%clk 0:00:10]} 30. b4 {[%clk 0:01:34]} 1-0

[Event "January 9 Early 2024"]
[Site "https://www.chess.com"]
[Date "2024.01.11"]
[Round "11"]
[White "Fernandez Hernandez, Gerardo"]
[Black "Gutierrez Carmona, Juan Alejandro"]
[Result "1-0"]
[Board "33"]
[TimeControl "180+1"]
[WhiteFideId "2207400"]
[BlackFideId "5106770"]
[WhiteElo "2302"]
[BlackElo "2180"]
[WhiteTeam "ESP"]
[BlackTeam "MEX"]
[WhiteClock "0:01:10"]
[BlackClock "0:00:11"]

1. e4 {[%clk 0:03:00]}  e5 {[%clk 0:02:53]} 2. Nf3 {[%clk 0:03:00]}  Nc6 {[%clk 0:02:52]} 3. d4 {[%clk 0:03:00]}  exd4 {[%clk 0:02:50]} 4. Bc4 {[%clk 0:03:00]}  Nf6 {[%clk 0:02:49]} 5. e5 {[%clk 0:03:00]}  d5 {[%clk 0:02:49]} 6. Bb5 {[%clk 0:03:01]}  Ne4 {[%clk 0:02:50]} 7. Nxd4 {[%clk 0:03:00]}  Bd7 {[%clk 0:02:49]} 8. Bxc6 {[%clk 0:02:59]}  bxc6 {[%clk 0:02:50]} 9. O-O {[%clk 0:02:58]}  Bc5 {[%clk 0:02:51]} 10. f3 {[%clk 0:02:58]}  Ng5 {[%clk 0:02:50]} 11. f4 {[%clk 0:02:58]}  Ne4 {[%clk 0:02:50]} 12. Be3 {[%clk 0:02:59]}  Bb6 {[%clk 0:02:50]} 13. Nd2 {[%clk 0:02:54]}  Nxd2 {[%clk 0:02:48]} 14. Qxd2 {[%clk 0:02:54]}  c5 {[%clk 0:02:48]} 15. Nf3 {[%clk 0:02:53]}  d4 {[%clk 0:02:39]} 16. Bf2 {[%clk 0:02:53]}  Bc6 {[%clk 0:02:36]} 17. Bh4 {[%clk 0:02:53]}  Qd5 {[%clk 0:02:28]} 18. Rad1 {[%clk 0:02:46]}  Qxa2 {[%clk 0:02:14]} 19. b3 {[%clk 0:02:21]}  Qa5 {[%clk 0:01:53]} 20. Qd3 {[%clk 0:02:03]}  Bb5 {[%clk 0:01:11]} 21. Qe4 {[%clk 0:01:59]}  O-O {[%clk 0:00:48]} 22. Ng5 {[%clk 0:01:46]}  g6 {[%clk 0:00:42]} 23. Rf3 {[%clk 0:01:27]}  c4 {[%clk 0:00:34]} 24. Nxh7 {[%clk 0:01:16]}  Kxh7 {[%clk 0:00:19]} 25. Bf6 {[%clk 0:01:11]}  Rh8 {[%clk 0:00:11]} 26. Rh3+ {[%clk 0:01:10]} 1-0

[Event "January 9 Early 2024"]
[Site "https://www.chess.com"]
[Date "2024.01.11"]
[Round "11"]
[White "Kleibel, Uwe"]
[Black "Pinheiro, Iung Alicio de O."]
[Result "0-1"]
[Board "34"]
[TimeControl "180+1"]
[WhiteFideId "1270982"]
[BlackFideId "2104350"]
[WhiteElo "2375"]
[BlackElo "2574"]
[WhiteTeam "GER"]
[BlackTeam "BRA"]
[WhiteClock "0:00:54"]
[BlackClock "0:00:37"]

1. e4 {[%clk 0:02:56]}  e5 {[%clk 0:02:59]} 2. Nf3 {[%clk 0:02:55]}  Nc6 {[%clk 0:02:58]} 3. d4 {[%clk 0:02:55]}  exd4 {[%clk 0:02:56]} 4. Nxd4 {[%clk 0:02:56]}  Qf6 {[%clk 0:02:56]} 5. Nxc6 {[%clk 0:02:46]}  dxc6 {[%clk 0:02:46]} 6. Nc3 {[%clk 0:02:43]}  Bc5 {[%clk 0:02:44]} 7. Qe2 {[%clk 0:02:38]}  Bd4 {[%clk 0:02:38]} 8. Bd2 {[%clk 0:02:37]}  Be6 {[%clk 0:02:36]} 9. f3 {[%clk 0:02:34]}  Ne7 {[%clk 0:02:33]} 10. O-O-O {[%clk 0:02:33]}  O-O-O {[%clk 0:02:01]} 11. h4 {[%clk 0:02:31]}  h6 {[%clk 0:02:00]} 12. Kb1 {[%clk 0:02:23]}  Qe5 {[%clk 0:01:56]} 13. a3 {[%clk 0:02:08]}  g5 {[%clk 0:01:43]} 14. Qe1 {[%clk 0:02:01]}  Ng6 {[%clk 0:01:35]} 15. hxg5 {[%clk 0:01:59]}  hxg5 {[%clk 0:01:35]} 16. Rxh8 {[%clk 0:02:00]}  Rxh8 {[%clk 0:01:35]} 17. Bd3 {[%clk 0:01:59]}  Nf4 {[%clk 0:01:32]} 18. g3 {[%clk 0:01:49]}  Nxd3 {[%clk 0:01:29]} 19. cxd3 {[%clk 0:01:50]}  Bb3 {[%clk 0:01:28]} 20. Rc1 {[%clk 0:01:50]}  Rh2 {[%clk 0:01:27]} 21. f4 {[%clk 0:01:50]}  gxf4 {[%clk 0:01:24]} 22. gxf4 {[%clk 0:01:51]}  Qg7 {[%clk 0:01:24]} 23. Be3 {[%clk 0:01:31]}  Qg2 {[%clk 0:01:13]} 24. Nd1 {[%clk 0:01:10]}  Bxe3 {[%clk 0:01:06]} 25. Qb4 {[%clk 0:00:56]}  c5 {[%clk 0:00:39]} 26. Qxb3 {[%clk 0:00:56]}  Bxc1 {[%clk 0:00:39]} 27. Qxf7 {[%clk 0:00:54]}  Qc2+ {[%clk 0:00:37]} 0-1

[Event "January 9 Early 2024"]
[Site "https://www.chess.com"]
[Date "2024.01.11"]
[Round "11"]
[White "Morales Garcia, Sergio Joshafatt"]
[Black "Onufrienko, Vladislav"]
[Result "0-1"]
[Board "35"]
[TimeControl "180+1"]
[WhiteFideId "5106249"]
[BlackFideId "13804332"]
[WhiteElo "2455"]
[BlackElo "2604"]
[WhiteTeam "MEX"]
[BlackTeam "KGZ"]
[WhiteClock "0:00:06"]
[BlackClock "0:01:18"]

1. d4 {[%clk 0:02:02]}  d5 {[%clk 0:02:59]} 2. c4 {[%clk 0:02:02]}  c6 {[%clk 0:02:59]} 3. Nf3 {[%clk 0:02:03]}  e6 {[%clk 0:03:00]} 4. Qc2 {[%clk 0:02:02]}  f5 {[%clk 0:03:00]} 5. e3 {[%clk 0:02:02]}  Nf6 {[%clk 0:03:01]} 6. Nc3 {[%clk 0:02:01]}  Bd6 {[%clk 0:03:01]} 7. Bd3 {[%clk 0:02:01]}  O-O {[%clk 0:03:01]} 8. O-O {[%clk 0:02:01]}  b6 {[%clk 0:03:01]} 9. b3 {[%clk 0:02:01]}  Bb7 {[%clk 0:03:01]} 10. Bb2 {[%clk 0:02:01]}  Nbd7 {[%clk 0:03:01]} 11. Nd2 {[%clk 0:01:59]}  c5 {[%clk 0:02:57]} 12. cxd5 {[%clk 0:01:57]}  Nxd5 {[%clk 0:02:47]} 13. Nxd5 {[%clk 0:01:57]}  Bxd5 {[%clk 0:02:48]} 14. e4 {[%clk 0:01:50]}  fxe4 {[%clk 0:02:23]} 15. Bxe4 {[%clk 0:01:49]}  Rc8 {[%clk 0:02:18]} 16. Bxd5 {[%clk 0:01:35]}  exd5 {[%clk 0:02:17]} 17. Qd3 {[%clk 0:01:35]}  Qh4 {[%clk 0:02:09]} 18. g3 {[%clk 0:01:33]}  Qh5 {[%clk 0:02:07]} 19. Rae1 {[%clk 0:01:22]}  Nf6 {[%clk 0:02:01]} 20. Kg2 {[%clk 0:00:51]}  Rce8 {[%clk 0:01:48]} 21. dxc5 {[%clk 0:00:47]}  Rxe1 {[%clk 0:01:38]} 22. Rxe1 {[%clk 0:00:45]}  Ng4 {[%clk 0:01:35]} 23. Nf3 {[%clk 0:00:28]}  Bxc5 {[%clk 0:01:19]} 24. h3 {[%clk 0:00:08]}  Nxf2 {[%clk 0:01:18]} 25. Re5 {[%clk 0:00:08]}  Qxh3+ {[%clk 0:01:18]} 26. Kg1 {[%clk 0:00:06]}  Nxd3+ {[%clk 0:01:18]} 0-1

[Event "January 9 Early 2024"]
[Site "https://www.chess.com"]
[Date "2024.01.11"]
[Round "11"]
[White "Haug, Havard"]
[Black "Vestby-Ellingsen, Mads"]
[Result "1/2-1/2"]
[Board "36"]
[TimeControl "180+1"]
[WhiteFideId "1547887"]
[BlackFideId "1520857"]
[WhiteElo "2778"]
[BlackElo "2650"]
[WhiteTeam "NOR"]
[BlackTeam "NOR"]
[WhiteClock "0:00:49"]
[BlackClock "0:00:58"]

1. e4 {[%clk 0:02:58]}  e5 {[%clk 0:02:57]} 2. Nc3 {[%clk 0:02:56]}  Nf6 {[%clk 0:02:53]} 3. Bc4 {[%clk 0:02:56]}  Bb4 {[%clk 0:02:50]} 4. Nge2 {[%clk 0:02:54]}  O-O {[%clk 0:02:48]} 5. d3 {[%clk 0:02:52]}  d5 {[%clk 0:02:48]} 6. exd5 {[%clk 0:02:53]}  Nxd5 {[%clk 0:02:47]} 7. Bxd5 {[%clk 0:02:54]}  Qxd5 {[%clk 0:02:47]} 8. O-O {[%clk 0:02:55]}  Qc6 {[%clk 0:02:42]} 9. f4 {[%clk 0:02:53]}  exf4 {[%clk 0:02:38]} 10. Bxf4 {[%clk 0:02:52]}  Bg4 {[%clk 0:02:34]} 11. Qd2 {[%clk 0:02:38]}  Bxe2 {[%clk 0:02:27]} 12. Qxe2 {[%clk 0:02:38]}  Bxc3 {[%clk 0:02:28]} 13. bxc3 {[%clk 0:02:38]}  Qxc3 {[%clk 0:02:28]} 14. Be5 {[%clk 0:02:36]}  Qc6 {[%clk 0:02:26]} 15. Qg4 {[%clk 0:02:30]}  f6 {[%clk 0:02:26]} 16. Bxf6 {[%clk 0:02:04]}  Rxf6 {[%clk 0:02:25]} 17. Rxf6 {[%clk 0:02:01]}  Qxf6 {[%clk 0:02:22]} 18. Qc8+ {[%clk 0:01:38]}  Qf8 {[%clk 0:02:21]} 19. Qxb7 {[%clk 0:01:37]}  Nd7 {[%clk 0:02:07]} 20. Qd5+ {[%clk 0:01:36]}  Kh8 {[%clk 0:02:06]} 21. Qxd7 {[%clk 0:01:36]}  Qc5+ {[%clk 0:01:59]} 22. Kh1 {[%clk 0:01:35]}  Qxc2 {[%clk 0:01:59]} 23. Re1 {[%clk 0:01:27]}  Qxa2 {[%clk 0:01:46]} 24. Qxc7 {[%clk 0:01:22]}  Qd5 {[%clk 0:01:41]} 25. h3 {[%clk 0:01:11]}  a5 {[%clk 0:01:08]} 26. Re7 {[%clk 0:01:01]}  Rg8 {[%clk 0:01:05]} 27. Re5 {[%clk 0:00:58]}  Qxd3 {[%clk 0:01:05]} 28. Qxa5 {[%clk 0:00:56]}  Qd1+ {[%clk 0:01:03]} 29. Re1 {[%clk 0:00:52]}  Qd8 {[%clk 0:01:01]} 30. Qa1 {[%clk 0:00:48]}  Re8 {[%clk 0:00:59]} 31. Rf1 {[%clk 0:00:47]}  Qe7 {[%clk 0:00:58]} 32. Qd1 {[%clk 0:00:46]}  h6 {[%clk 0:00:58]} 33. Qf3 {[%clk 0:00:46]}  Qe4 {[%clk 0:00:56]} 34. Qxe4 {[%clk 0:00:45]}  Rxe4 {[%clk 0:00:56]} 35. Kh2 {[%clk 0:00:45]}  Rd4 {[%clk 0:00:56]} 36. Rh1 {[%clk 0:00:46]}  Rc4 {[%clk 0:00:56]} 37. Rg1 {[%clk 0:00:46]}  Rd4 {[%clk 0:00:57]} 38. Rh1 {[%clk 0:00:47]}  Rc4 {[%clk 0:00:57]} 39. Rg1 {[%clk 0:00:48]}  Rd4 {[%clk 0:00:58]} 40. Rc1 {[%clk 0:00:48]}  Re4 {[%clk 0:00:58]} 41. Rd1 {[%clk 0:00:48]}  Rc4 {[%clk 0:00:58]} 42. Rg1 {[%clk 0:00:49]} 1/2-1/2

[Event "January 9 Early 2024"]
[Site "https://www.chess.com"]
[Date "2024.01.11"]
[Round "11"]
[White "Zhigalko, Sergei"]
[Black "Molina, Roberto Junio Brito"]
[Result "1-0"]
[Board "37"]
[TimeControl "180+1"]
[WhiteFideId "13502956"]
[BlackFideId "2109450"]
[WhiteElo "2918"]
[BlackElo "2804"]
[WhiteTeam "BLR"]
[BlackTeam "BRA"]
[WhiteClock "0:00:17"]
[BlackClock "0:01:16"]

1. e4 {[%clk 0:03:00]}  c6 {[%clk 0:03:00]} 2. d4 {[%clk 0:03:01]}  d5 {[%clk 0:03:00]} 3. e5 {[%clk 0:03:01]}  Bf5 {[%clk 0:02:57]} 4. Nf3 {[%clk 0:03:02]}  e6 {[%clk 0:02:56]} 5. Be2 {[%clk 0:03:02]}  Nd7 {[%clk 0:02:54]} 6. O-O {[%clk 0:03:02]}  Bg6 {[%clk 0:02:54]} 7. Nbd2 {[%clk 0:03:02]}  Nh6 {[%clk 0:02:54]} 8. a4 {[%clk 0:02:59]}  Nf5 {[%clk 0:02:54]} 9. a5 {[%clk 0:02:59]}  Be7 {[%clk 0:02:53]} 10. g4 {[%clk 0:02:59]}  Nh4 {[%clk 0:02:51]} 11. Nxh4 {[%clk 0:02:59]}  Bxh4 {[%clk 0:02:51]} 12. f4 {[%clk 0:02:59]}  f5 {[%clk 0:02:51]} 13. exf6 {[%clk 0:02:51]}  Bxf6 {[%clk 0:02:49]} 14. Nb3 {[%clk 0:02:33]}  O-O {[%clk 0:02:48]} 15. g5 {[%clk 0:02:23]}  Be7 {[%clk 0:02:47]} 16. Bg4 {[%clk 0:02:24]}  Bf5 {[%clk 0:02:47]} 17. Re1 {[%clk 0:02:24]}  g6 {[%clk 0:02:28]} 18. Rxe6 {[%clk 0:02:23]}  Bxe6 {[%clk 0:02:23]} 19. Bxe6+ {[%clk 0:02:24]}  Kh8 {[%clk 0:02:21]} 20. Qg4 {[%clk 0:02:25]}  Nb8 {[%clk 0:02:16]} 21. Nc5 {[%clk 0:01:47]}  Qc7 {[%clk 0:01:54]} 22. Bd2 {[%clk 0:01:10]}  Na6 {[%clk 0:01:53]} 23. Nd7 {[%clk 0:01:10]}  Bd6 {[%clk 0:01:50]} 24. Rf1 {[%clk 0:01:01]}  Bb4 {[%clk 0:01:46]} 25. c3 {[%clk 0:00:58]}  Bd6 {[%clk 0:01:41]} 26. b4 {[%clk 0:00:36]}  b6 {[%clk 0:01:40]} 27. axb6 {[%clk 0:00:34]}  axb6 {[%clk 0:01:41]} 28. Nxf8 {[%clk 0:00:32]}  Rxf8 {[%clk 0:01:41]} 29. Kg2 {[%clk 0:00:32]}  c5 {[%clk 0:01:27]} 30. b5 {[%clk 0:00:29]}  Nb8 {[%clk 0:01:27]} 31. Bxd5 {[%clk 0:00:21]}  cxd4 {[%clk 0:01:27]} 32. cxd4 {[%clk 0:00:22]}  Qc2 {[%clk 0:01:25]} 33. Rf2 {[%clk 0:00:21]}  Qd3 {[%clk 0:01:20]} 34. Qe6 {[%clk 0:00:19]}  Qxd4 {[%clk 0:01:16]} 35. Qxd6 {[%clk 0:00:17]} 1-0